Cogmind - Beta 15 @@@ ROGUE MODE // 2025.09.01 @ 01:15:13 Player: Blanco! Result: Destroyed by S-27 Virus with Autogun Performance ------------- Evolutions (3) 1500 Regions Visited (7) 1400 Robots Destroyed (39) 195 Value Destroyed (1484) 1484 Prototype IDs (2) 40 Alien Tech Used (0) 0 Bonus (85) 85 TOTAL SCORE: 4704 Bonus ------- Follower Combat Kills 85 Cogmind --------- Core Integrity 0/700 Matter 260/300 Energy 160/160 System Corruption 3% Temperature Cool (0) Movement Core (550) Ox10 Location -7/Lower Caves Parts ------- > --- POWER (2) -------- Light Nuclear Core > --- PROPULSION (4) --- (None) > --- UTILITY (4) ------ Huge Storage Unit Weight Redist. System Hardlight Generator > --- WEAPON (3) ------- Minigun Great Axe > --- INVENTORY (25) --- Improved Heat Sink Advanced Weight Redist. System Heavy Particle Gun Gatling Laser Gatling Laser Gatling Laser Beamcaster Plasma Cannon Minigun Minigun Minigun Peak State ------------ > --- POWER ------------ Light Deuterium Engine Light Angular Momentum Engine > --- PROPULSION ------- Improved Titanium Leg Improved Titanium Leg Improved Titanium Leg Improved Titanium Leg > --- UTILITY ---------- Huge Storage Unit Weight Redist. System Light Armor Plating Improved Medium Armor Plating > --- WEAPON ----------- Beamcaster Enhanced Autogun Assault Cannon > --- INVENTORY -------- Ion Engine Light Ion Engine Improved Ion Engine Improved Ion Engine Deuterium Engine Titanium Leg Improved Titanium Leg Wheel Wheel Weight Redist. System Weight Redist. System Advanced Weight Redist. System Power Shielding Power Shielding Utility Shielding Utility Shielding Improved Light Armor Plating Hardlight Generator Heavy Particle Gun Gatling Laser Gatling Laser Gatling Laser Plasma Cannon Advanced Assault Cannon Great Axe [Rating: 50] Favorites ----------- Power Light Deuterium Engine Engine Light Deuterium Engine Power Core Light Nuclear Core Propulsion Improved Titanium Leg Treads Medium Treads Leg Improved Titanium Leg Wheel Wheel Utility Weight Redist. System Device Weight Redist. System Storage Huge Storage Unit Processor Targeting Computer Protection Improved Light Armor Plating Weapon Assault Cannon Energy Gun Beamcaster Ballistic Gun Minigun Ballistic Cannon Assault Cannon Launcher Grenade Launcher Slashing Weapon Great Axe Build | -11 -10 -10 -10 -9 -8 -7 -7 ------- Run | Yrd Mat Min Exi Min Mat Fac Low Slots Evolved 6 | . . . . . 4 2 . Power 1 | . . . . . 1 . . Propulsion 2 | . . . . . 2 . . Utility 2 | . . . . . 1 1 . Weapon 1 | . . . . . . 1 . Parts Attached 45 | 4 1 5 1 . 2 18 14 Power 9 | 1 . . . . 1 2 5 Engine 7 | 1 . . . . 1 2 3 Core 2 | . . . . . . . 2 Reactor . | . . . . . . . . Propulsion 9 | 2 . . . . . 5 2 Treads 1 | . . . . . . . 1 Leg 6 | . . . . . . 5 1 Wheel 2 | 2 . . . . . . . Hover . | . . . . . . . . Flight . | . . . . . . . . Utility 14 | 1 1 1 1 . 1 6 3 Device 4 | . 1 . . . . 1 2 Storage 3 | 1 . . 1 . . 1 . Processor 1 | . . 1 . . . . . Hackware . | . . . . . . . . Protection 6 | . . . . . 1 4 1 Artifact . | . . . . . . . . Weapon 13 | . . 4 . . . 5 4 Energy Gun 2 | . . 1 . . . 1 . Energy Cannon . | . . . . . . . . Ballistic Gun 5 | . . 2 . . . 2 1 Ballistic Cannon 2 | . . . . . . 2 . Launcher 2 | . . 1 . . . . 1 Special Weapon . | . . . . . . . . Impact Weapon . | . . . . . . . . Slashing Weapon 2 | . . . . . . . 2 Piercing Weapon . | . . . . . . . . Special Melee Weapon . | . . . . . . . . Unidentified Prototypes 2 | . . . . . . 2 . Parts Lost 29 | . . . . . . 8 21 Power 8 | . . . . . . 1 7 Propulsion 7 | . . . . . . 1 6 Utility 7 | . . . . . . 3 4 Weapon 7 | . . . . . . 3 4 Highest Loss Streak 16 | . . . . . . 2 16 To Critical Strikes . | . . . . . . . . Average Backups 17 | 1 3 7 8 8 14 21 19 Power 3 | . 1 1 2 2 3 4 3 Propulsion 2 | . . . 1 1 1 3 . Utility 5 | . . 3 4 4 6 6 4 Weapon 6 | 1 2 . 1 1 1 6 10 Tool/Special . | . . . . . . . . Unused Backups 15 | . . . . . . 7 8 Power . | . . . . . . . . Propulsion 2 | . . . . . . 2 . Utility 6 | . . . . . . 4 2 Weapon 7 | . . . . . . 1 6 Tool/Special . | . . . . . . . . Average Slot Usage (%) 92 | . 67 98 100 100 80 97 85 Engine 14 | . 14 14 14 14 18 14 12 Leg 17 | . . . . . . 26 19 Wheel 7 | . 28 28 28 28 18 1 . Device 5 | . 10 3 . . . 7 7 Storage 8 | . 14 14 14 14 9 7 7 Processor 3 | . . 10 14 14 9 1 . Protection 10 | . . . . . 8 13 12 Energy Gun 7 | . . 10 14 14 9 6 5 Ballistic Gun 4 | . . 14 . . . 4 6 Ballistic Cannon 5 | . . . . . . 7 6 Launcher 3 | . . 1 13 14 9 2 . Peak Build Rating 50 | 4 5 12 12 12 20 50 49 Average Rating 34 | 3 4 11 12 12 19 45 39 On Entrance 14 | . 4 5 12 12 12 20 49 Naked Turns . | . . . . . . . . Heaviest Build 119 | 8 9 16 51 51 61 119 115 Greatest Support 86 | 20 20 20 20 20 20 86 66 Greatest Overweight (x) 10 | . . . 2 2 3 2 10 Average Overweight (x) . | . . . . 2 3 . 1 Largest Inventory Capacity 25 | 8 8 8 20 20 20 25 25 Average Capacity 21 | 7 8 8 9 20 20 23 25 Most Carried 25 | 3 4 8 8 8 19 25 24 Average Carried 18 | 2 3 7 8 8 14 21 21 Final Capacity 25 | 8 8 8 20 20 20 25 25 Final Carried 24 | 3 3 8 8 8 19 24 11 Class Distribution -------------------- 57% | Tank 31% | Mutant 10% | Gunner Dominant Class ---------------- Mutant | -10/Materials Mutant | -10/Mines Mutant | -10/Exiles Mutant | -9/Mines Mutant | -8/Materials Tank | -7/Factory Tank | -7/Lower Caves Resources | -11 -10 -10 -10 -9 -8 -7 -7 ----------- Run | Yrd Mat Min Exi Min Mat Fac Low Matter Collected 1350 | 232 15 109 . 40 20 499 435 Remotely . | . . . . . . . . Salvage Created 1149 | . . 22 . 13 55 658 401 Parts 63 | . . 2 . 3 7 33 18 Haulers Intercepted . | . . . . . . . . Recyclers Shooed 1 | . . . . . . 1 . Parts Field Recycled . | . . . . . . . . Retrieved Matter . | . . . . . . . . Parts Self-Destructed 20 | . . . . . . . 20 Prevented . | . . . . . . . . Kills | -11 -10 -10 -10 -9 -8 -7 -7 ------- Run | Yrd Mat Min Exi Min Mat Fac Low Combat Hostiles Destroyed 35 | . . 2 . 2 1 15 15 Melee 4 | . . . . . . . 4 Guns 16 | . . 2 . . 1 8 5 Cannons 4 | . . . . . . 4 . AOE 11 | . . . . 2 . 3 6 Classes Destroyed 8 | . . 1 . . 1 6 . Worker 1 | . . . . . . 1 . Tunneler 1 | . . . . . . 1 . Recycler 1 | . . . . . . 1 . Watcher 1 | . . . . . . 1 . Swarmer 12 | . . 2 . 2 . 2 6 Grunt 14 | . . . . . . 6 8 Sentry 5 | . . . . . 1 3 1 Programmer 4 | . . . . . . 4 . Best Kill Streak 8 | . . 2 . 2 1 3 8 Combat Bots Only 8 | . . 2 . 2 1 2 8 Max Kills in Single Turn 3 | . . 1 . 2 1 2 3 Gunslinging . | . . . . . . . . Exploded 3 | . . . . 2 . 2 3 Melee 1 | . . . . . . . 1 Uniques/NPCs Destroyed . | . . . . . . . . Combat | -11 -10 -10 -10 -9 -8 -7 -7 -------- Run | Yrd Mat Min Exi Min Mat Fac Low Hostile Shots Fired 373 | . . 22 . 1 . 150 200 Missed 101 | . . 5 . . . 48 48 Hits 272 | . . 17 . 1 . 102 152 Projectile 272 | . . 17 . 1 . 102 152 Critical Strikes 11 | . . 1 . . . 4 6 Damage Taken 4227 | 1 . 193 . 9 8 1439 2577 Core 736 | . . 28 . . . 343 365 Absorbed by Shields 40 | . . . . . . . 40 Redirected to Shielding 2 | . . . . . 2 . . Regen/Repaired (Parts) 37 | . . . . . . 37 . Core Remaining (%) 96 | 100 . . . 88 100 . . Volleys Fired 67 | . . 11 1 1 1 32 21 Largest 3 | . . 2 2 2 1 3 3 Hottest 157 | . . 105 105 105 75 157 142 Shots Fired 159 | . . 22 2 2 1 92 40 Gun 88 | . . 21 1 1 1 44 20 Cannon 58 | . . . . . . 43 15 Launcher 13 | . . 1 1 1 . 5 5 Special . | . . . . . . . . Kinetic 104 | . . 13 . . . 60 31 Thermal 42 | . . 8 1 1 1 27 4 Explosive 13 | . . 1 1 1 . 5 5 Electromagnetic . | . . . . . . . . Robot Hit Streak 8 | . . 4 . . 1 8 5 Robot Miss Streak 6 | . . 2 . 2 . 6 5 Penetration Max . | . . . . . . . . Secondary Targets 1 | . . 1 . . . . . Max Gunslinging Chain 1 | . . 1 . . . . . Shots Hit Robots 92 | . . 12 . . 1 50 29 Core Hits 67 | . . 4 . 1 1 34 27 Critical Kills 1 | . . . . . . 1 . Critical Parts Destroyed . | . . . . . . . . Critical Strikes 3 | . . . . . . 2 1 Burn 1 | . . . . . . 1 . Destroy 1 | . . . . . . 1 . Blast 1 | . . . . . . . 1 Melee Attacks 7 | . . . . . . . 7 Impact . | . . . . . . . . Slashing 7 | . . . . . . . 7 Piercing . | . . . . . . . . Sneak Attacks . | . . . . . . . . Combat Hostiles . | . . . . . . . . Follow-up Attacks 1 | . . . . . . . 1 Damage Inflicted 3316 | 3 . 206 . 131 37 1437 1502 Guns 1002 | . . 206 . . 20 544 232 Cannons 782 | . . . . . . 553 229 Explosions 1057 | . . . . 131 . 169 757 Melee 284 | . . . . . . . 284 Ramming 191 | 3 . . . . 17 171 . Kinetic 1241 | . . 99 . . . 722 420 Thermal 543 | . . 107 . . 20 375 41 Explosive 1057 | . . . . 131 . 169 757 Electromagnetic . | . . . . . . . . Impact . | . . . . . . . . Slashing 284 | . . . . . . . 284 Piercing . | . . . . . . . . Highest Corruption 3 | . . . . . . 3 3 Average Corruption 2 | . . . . . . 2 3 Corruption Purged . | . . . . . . . . Corruption Blocked . | . . . . . . . . Effects 51 | . . . . . . 29 22 Message Errors 14 | . . . . . . 10 4 Matter Fused 17 | . . . . . . 8 9 Heat Flow Errors 5 | . . . . . . 3 2 Energy Discharges 5 | . . . . . . 3 2 Data Loss (minor) 5 | . . . . . . 2 3 Data Loss (major) 1 | . . . . . . 1 . Misfires 1 | . . . . . . 1 . Alerts 2 | . . . . . . 1 1 Weapon Failures 1 | . . . . . . . 1 Overload Shots . | . . . . . . . . Overflow Damage 50 | . . . . 16 . 6 28 Projectiles . | . . . . . . . . Explosions 44 | . . . . 16 . . 28 Melee 6 | . . . . . . 6 . Knockbacks 5 | . . . . . . 3 2 Impact 1 | . . . . . . 1 . Kinetic 4 | . . . . . . 2 2 Secondary . | . . . . . . . . Self-Inflicted Damage 266 | 1 . 19 . 2 8 40 196 Shots 7 | . . 1 . 1 . 1 4 Rammed 2 | 1 . . . . 1 . . Targets Rammed 11 | 1 . . . . 1 9 . Kicked 9 | . . . . . . 9 . Crushed . | . . . . . . . . Highest Temperature 732 | . . 211 45 45 36 732 468 Average Temperature 169 | . . 85 24 24 23 180 183 Received Heat Transfer 1179 | . . 54 . . . 357 768 Effects 41 | . . . . . . 35 6 Shutdowns 14 | . . . . . . 11 3 Energy Bleed 5 | . . . . . . 4 1 Interference 3 | . . . . . . 3 . Matter Decay 3 | . . . . . . 2 1 Short Circuit 1 | . . . . . . 1 . Damage (minor) 2 | . . . . . . 1 1 Damage (major) 11 | . . . . . . 11 . Damage (core) 2 | . . . . . . 2 . Siege Activations . | . . . . . . . . Martial Activations . | . . . . . . . . Shielding Activations . | . . . . . . . . Robots Disrupted . | . . . . . . . . Combat Hostiles . | . . . . . . . . Robots Corrupted 1 | . . . . . . 1 . Combat Hostiles . | . . . . . . . . Parts Fried . | . . . . . . . . Impact Corruptions 1 | . . . . . . 1 . Robots Melted . | . . . . . . . . Combat Hostiles . | . . . . . . . . Parts Melted . | . . . . . . . . Heat Transferred 1117 | . . 185 . . 37 795 100 Parts Sabotaged . | . . . . . . . . Parts Stolen . | . . . . . . . . Parts Stripped . | . . . . . . . . Power Chain Reactions . | . . . . . . . . Alert | -11 -10 -10 -10 -9 -8 -7 -7 ------- Run | Yrd Mat Min Exi Min Mat Fac Low Maximum Alert Level . | . . . . . . . . Low Security (%) 100 | 100 100 100 . 100 100 100 . Level 1 . | . . . . . . . . Level 2 . | . . . . . . . . Level 3 . | . . . . . . . . Level 4 . | . . . . . . . . Level 5 . | . . . . . . . . High Security . | . . . . . . . . Max Security . | . . . . . . . . Peak Influence 148 | . . 40 . 60 22 148 . Initial 3 | . . . . . 3 . . Average 56 | . . 7 . 38 1 76 . Influence Increases 1068 | . . 46 . 60 32 615 315 Destroy 0b10 Robot/C 760 | . . 40 . 40 20 360 300 Destroy 0b10 Robot/NC 20 | . . . . . . 20 . Destroy Leader 132 | . . . . 10 10 112 . Allied During Kill 6 | . . . . . 2 4 . Successful Hack 2 | . . . . . . 2 . Disable Machine 30 | . . . . . . 30 . Destroy Structure 58 | . . 6 . 10 . 42 . Partial Spotted 15 | . . . . . . 15 . Lose Combat Pursuer 45 | . . . . . . 30 15 Influence Decreases 1007 | . . 36 10 50 42 524 345 Entered New Map 52 | . . . 10 . 7 . 35 Time Decay 685 | . . 36 . 50 35 434 130 Lost Part 250 | . . . . . . 70 180 Lost Ally 20 | . . . . . . 20 . Squads Dispatched 8 | . . . . . . 8 . Investigation 1 | . . . . . . 1 . Extermination 5 | . . . . . . 5 . Reinforcement 2 | . . . . . . 2 . Assault . | . . . . . . . . Garrison . | . . . . . . . . Intercept . | . . . . . . . . Searches Triggered . | . . . . . . . . Construction Impeded . | . . . . . . . . Haulers Reinforced 1 | . . . . . . 1 . Active Scanning Responses . | . . . . . . . . Cargo Convoy Interrupts . | . . . . . . . . Stealth | -11 -10 -10 -10 -9 -8 -7 -7 --------- Run | Yrd Mat Min Exi Min Mat Fac Low Distress Signals . | . . . . . . . . Communications Jammed . | . . . . . . . . Distress Signals . | . . . . . . . . Times Spotted 48 | . . 4 . 1 1 20 22 Peak Tracking Total 13 | . . 2 . . 1 3 13 Tactical Retreats 3 | . . . . . . 2 1 Traps | -11 -10 -10 -10 -9 -8 -7 -7 ------- Run | Yrd Mat Min Exi Min Mat Fac Low Traps Triggered 2 | . . . . . . 2 . Indirectly . | . . . . . . . . Trap Hack Attempts . | . . . . . . . . Triggered . | . . . . . . . . Disarmed . | . . . . . . . . Reprogrammed . | . . . . . . . . Reused . | . . . . . . . . Traps Extracted . | . . . . . . . . Installed . | . . . . . . . . Triggered . | . . . . . . . . Machines | -11 -10 -10 -10 -9 -8 -7 -7 ---------- Run | Yrd Mat Min Exi Min Mat Fac Low Machines Disabled 3 | . . . 1 . . 2 . Max in Single Turn 2 | . . . 1 . . 2 . Machines Repaired . | . . . . . . . . Machines Dismantled . | . . . . . . . . Machines Sabotaged . | . . . . . . . . Overloaded Fab Kills . | . . . . . . . . Hacking | -11 -10 -10 -10 -9 -8 -7 -7 --------- Run | Yrd Mat Min Exi Min Mat Fac Low Machines Accessed 2 | . 1 . . . . 1 . Terminals 1 | . 1 . . . . . . Fabricators . | . . . . . . . . Repair Stations 1 | . . . . . . 1 . Recycling Units . | . . . . . . . . Scanalyzers . | . . . . . . . . Garrison Access . | . . . . . . . . Total Hacks 4 | . 1 . . . . 3 . Successful 4 | . 1 . . . . 3 . Failed . | . . . . . . . . Catastrophic . | . . . . . . . . Database Lockouts . | . . . . . . . . Manual . | . . . . . . . . Terminals 1 | . 1 . . . . . . Fabricators . | . . . . . . . . Repair Stations 3 | . . . . . . 3 . Recycling Units . | . . . . . . . . Scanalyzers . | . . . . . . . . Garrison Access . | . . . . . . . . Terminal Hacks 1 | . 1 . . . . . . Record 1 | . 1 . . . . . . Fabricator Hacks . | . . . . . . . . Repair Station Hacks 3 | . . . . . . 3 . Scan Component 2 | . . . . . . 2 . Repair 1 | . . . . . . 1 . Recycling Unit Hacks . | . . . . . . . . Scanalyzer . | . . . . . . . . Garrison Access Hacks . | . . . . . . . . Unauthorized Hacks . | . . . . . . . . Terminals . | . . . . . . . . Fabricators . | . . . . . . . . Repair Stations . | . . . . . . . . Recycling Units . | . . . . . . . . Scanalyzers . | . . . . . . . . Garrison Access . | . . . . . . . . Data Cores Recovered 1 | . 1 . . . . . . Used . | . . . . . . . . Hacking Detections . | . . . . . . . . Full Trace Events . | . . . . . . . . Feedback Events . | . . . . . . . . Feedback Blocked . | . . . . . . . . Robot Schematics Acquired . | . . . . . . . . Robots Built . | . . . . . . . . Authchips . | . . . . . . . . Time . | . . . . . . . . Total Robot Build Rating . | . . . . . . . . Part Schematics Acquired . | . . . . . . . . Parts Built . | . . . . . . . . Authchips . | . . . . . . . . Time . | . . . . . . . . Total Part Build Rating . | . . . . . . . . Parts Repaired 1 | . . . . . . 1 . Time 50 | . . . . . . 50 . Parts Recycled . | . . . . . . . . Recycled Matter . | . . . . . . . . Retrieved Matter . | . . . . . . . . Retrieved Components . | . . . . . . . . Parts Scanalyzed . | . . . . . . . . Part Schematics Acquired . | . . . . . . . . Parts Damaged . | . . . . . . . . Bothacking | -11 -10 -10 -10 -9 -8 -7 -7 ------------ Run | Yrd Mat Min Exi Min Mat Fac Low Used RIF Installer . | . . . . . . . . Robots Hacked . | . . . . . . . . Non-combat . | . . . . . . . . Combat . | . . . . . . . . Robot Hacks Applied . | . . . . . . . . Relay Couplers Released . | . . . . . . . . Fabnet Peak Effective % . | . . . . . . . . Robots Rewired . | . . . . . . . . Allies Hacked . | . . . . . . . . Hacks Repelled . | . . . . . . . . Allies | -11 -10 -10 -10 -9 -8 -7 -7 -------- Run | Yrd Mat Min Exi Min Mat Fac Low Total Allies 1 | . . . . 1 . . . Largest Group 1 | . . . . 1 1 1 . Highest-Rated Group 31 | . . . . 31 31 31 . Highest-Rated Ally 31 | . . . . 31 31 31 . Total Orders . | . . . . . . . . Ally Attacks 6 | . . . . . . 6 . Total Damage 97 | . . . . . . 97 . Kills 3 | . . . . . . 3 . Allies Corrupted . | . . . . . . . . Allies Melted . | . . . . . . . . Intel | -11 -10 -10 -10 -9 -8 -7 -7 ------- Run | Yrd Mat Min Exi Min Mat Fac Low Active Infowar (turns) 102 | . 57 45 . . . . . Seismic 102 | . 57 45 . . . . . Robot Analysis Total . | . . . . . . . . Derelict Logs Recovered 2 | . . 1 . . . . 1 Drone Launches . | . . . . . . . . Drone Recoveries . | . . . . . . . . Exploration | -11 -10 -10 -10 -9 -8 -7 -7 ------------- Run | Yrd Mat Min Exi Min Mat Fac Low Turns Passed 4360 | 51 73 211 366 102 396 2013 1148 Spaces Moved 2633 | 51 89 202 431 91 303 964 502 Core 6 | 5 . . . . . . 1 Treads 33 | . . . . . . . 33 Legs 1344 | . . . . . . 876 468 Wheels 1250 | 46 89 202 431 91 303 88 . Hover . | . . . . . . . . Flight . | . . . . . . . . Fastest Speed 50 | 50 80 80 80 110 125 110 200 Average Speed 147 | 77 80 80 83 110 125 178 209 Slowest Speed 550 | 80 80 80 110 110 125 270 550 Overloaded Moves . | . . . . . . . . Propulsion Burnouts . | . . . . . . . . Robots Hopped . | . . . . . . . . Potential Cave-ins . | . . . . . . . . Cave-ins Triggered . | . . . . . . . . Exploration Rate (%) 33 | 4 17 26 79 30 21 23 64 Regions Visited 7 Branch Regions 4 Pre-discovered Areas 1 | . . . . 1 . . . Known Exits Taken . | . . . . . . . . Unknown Exits Taken 7 | 1 1 1 1 1 1 1 . Scrap Searched 3 | . . 1 . 1 . . 1 Spaces Dug 6 | . . 6 . . . . . Terrain Destroyed 138 | . . 6 7 10 . 61 54 Melee . | . . . . . . . . Projectile 7 | . . . . . . 6 1 AOE 131 | . . 6 7 10 . 55 53 Terrain Rammed . | . . . . . . . . Walls Destroyed . | . . . . . . . . Machines Disabled . | . . . . . . . . Actions | -11 -10 -10 -10 -9 -8 -7 -7 --------- Run | Yrd Mat Min Exi Min Mat Fac Low Total 2965 | 62 90 228 434 91 319 1182 559 Wait 128 | . . . . . . 118 10 Move 2626 | 50 88 201 430 90 302 963 502 Hop . | . . . . . . . . Pick Up 59 | 7 1 8 . . 13 27 3 Fast Attach 1 | . . 1 . . . . . Attach 39 | 4 1 3 . . 2 14 15 Detach 2 | . . . . . . 1 1 Swap 12 | . . 2 2 . . 7 1 Drop 14 | . . 2 1 . . 11 . Fire 67 | . . 11 1 1 1 32 21 Melee 6 | . . . . . . . 6 Ram 2 | 1 . . . . 1 . . Kick 9 | . . . . . . 9 . Crush . | . . . . . . . . Escape Stasis . | . . . . . . . . Rewire . | . . . . . . . . Trap . | . . . . . . . . Miscellaneous . | . . . . . . . . Route ------- -11/Scrapyard -10/Materials -10/Mines -10/Exiles (discovered 2 exits: [*Min x2]) -9/Mines -8/Materials -7/Factory -7/Lower Caves History --------- Turn | Location | Event 27 | -11/Scrapyard | Discovered new exit (range 16) 52 | -11/Scrapyard | Entered Materials 53 | -10/Materials | Met a group of wandering Federalists 113 | -10/Materials | Discovered new exit (range 15) 125 | -10/Materials | Entered Mines 127 | -10/Mines | Joined a pair of Derelicts in attacking an 0b10 outpost 293 | -10/Mines | Learned Materials terminal intel 302 | -10/Mines | Build established: Mutant 330 | -10/Mines | Deemed a non-threat by the Exiles lab entrance 331 | -10/Mines | Discovered new exit (range 5) 336 | -10/Mines | Entered Exiles 360 | -10/Exiles | Discovered new exit (range 15) 389 | -10/Exiles | Met 8R-AWN 407 | -10/Exiles | Met EX-HEX 451 | -10/Exiles | Met EX-DEC 472 | -10/Exiles | Visited The Gauntlet 684 | -10/Exiles | Discovered new exit (range 12) 702 | -10/Exiles | Entered Mines 704 | -9/Mines | Escorted by a lone wolf Derelict 724 | -9/Mines | Learned location of Storage (-7) 788 | -9/Mines | Discovered new exit (range 12) 804 | -9/Mines | Entered Materials 804 | -8/Materials | Accompanied by 1 ally 804 | -8/Materials | Evolved 4 slots: Power x1, Propulsion x2, Utility x1 805 | -8/Materials | Loaded intel: 12 terminal locations 1101 | -8/Materials | Discovered new exit (range 9) 1200 | -8/Materials | Entered Factory 1200 | -7/Factory | Accompanied by 1 ally 1200 | -7/Factory | Evolved 2 slots: Utility x1, Weapon x1 1350 | -7/Factory | Repaired Lgt. Angular Momentum Engine 1487 | -7/Factory | Build established: Gunner 1976 | -7/Factory | Build established: Tank 3199 | -7/Factory | Discovered new exit (range 6) 3213 | -7/Factory | Entered Lower Caves 3229 | -7/Lower Caves | Core integrity fell below 50% 3268 | -7/Lower Caves | Lost 4 parts (1p2n1w) 3304 | -7/Lower Caves | Learned 12 Factory zone layouts 3418 | -7/Lower Caves | Encountered a Warlord checkpoint 4172 | -7/Lower Caves | Attracted the attention of an 0b10 base 4217 | -7/Lower Caves | Core integrity fell below 20% 4262 | -7/Lower Caves | Lost 16 parts (6p3n4u3w) 4264 | -7/Lower Caves | Destroyed 8 combat bots 4361 | -7/Lower Caves | Destroyed by S-27 Virus with Autogun Last Messages --------------- 04236_ Penetrated by Slug. 04237_ Y-64 Sentinel destroyed. 04239_ VTOL Module fries itself beyond repair. 04241_ The unstable cave ceiling collapses. 04242_ Imp. Heat Sink fries itself beyond repair. 04243_ The unstable cave ceiling collapses. 04243_ G-47 Trooper destroyed. 04245_ The unstable cave ceiling collapses. 04251_ Imp. Heat Sink fries itself beyond repair. 04254_ Adv. Heat Sink fries itself beyond repair. 04254_ The unstable cave ceiling collapses. 04264_ Acquired 39 matter. 04271_ Acquired 41 matter. 04274_ System corrupted: Matter fused (-8). 04283_ Acquired 24 matter. 04303_ Acquired 6 matter. 04306_ Acquired 17 matter. 04313_ The unstable cave ceiling collapses. 04350_ System corrupted: IFF burst signal emitted. 04360_ Med. Treads destroyed. Map ----- +----------------------------------------------------+ | ?????????????????????????????????????????????????? | | ?????????????????????????????????????????????????? | | ?????????????????????????????????????????????????? | | ?????????????????????????????????????????????????? | | ?????????????????????????????????????????????????? | | ?????????????????????????????????????????????????? | | ?????????????????????????????????????????????????? | | ?????????????????????????????????????????????????? | | ?????????????????????????????????????????????????? | | ?????????????????????????????????????????????????? | | ?????????????????????????????????????????????????? | | ?????????????#####????#######????????########????? | | ????????????## ##### ##???#### ?????? | | ???????????? ##??# ?????? | | ?????????????? #?? #?????? | | ??????????????? ## #??? ????### | | ???????????????? ### ##??# #???## | | ?????????????????# # #### #? #??## | | ?????????????????# # ## ### #?## | | ????????????????## # ## #?## # | | ??????????????### # #?# # | | ?????????????## % #?# # | | ?????????????# #?## # # | | ?????????????# # ##### ##### # ######### | | ?????????????# ## " # # ## ##### # | | ?????????????# # " # @ # ## ## | | ?????????????## # " # ## | | ??????????????### " # # ## ## | | ????????????????# #" # # ## | | ??????????????# #" #s + ### ### | | ??????????????## # s + #?######?## | | ???????????????## ?+ ss " " # #?????????## | | ????????????????# ?+ """"" # #?????????## | | ???????????????? ?# # #????????## | | ???????????????? ?#T ! # ????????## | | ????????????????#??#" %"""#?????????## | | ???????????????????#"" "????????????# | | ???????????????????#"""""" "???????????## | | ???????????????????########++###????????# ## | | ????????????????????????????????????????# | | ????????????????????????????????????????# | | ????????????????????????????????????????# #### | | ????????????????????????????????????????# #???# | | ???????????????????????????????????????# ????? | | ???????????????????????????????????????# ?????? | | ???????????????????????????????????????# ?????# | | ?????????????????????????????????????? ??????# | | ?????????????????????????????????????# ??????# | | ?????????????????????????????????????## #???????? | | ???????????????????????????????????????#?????????? | +----------------------------------------------------+ Best States ------------- Heat Dissipation 34 Energy Generation 27 Energy Capacity 425 Matter Stores 300 Matter Capacity 300 Sight Range 16 Terrain Scan Density 10 Additional Mass Support 6 Armor Coverage 600 Power Shielding 33 Evasion (%) 55 Targeting Accuracy 5 Recoil Reduction 1 Item Schematics ----------------- None Robot Schematics ------------------ None Fabricated ------------ Nothing Repaired ---------- Lgt. Angular Momentum Engine | 38% | -7/Factory Alien Tech Used ----------------- None Achievements -------------- None Challenges ------------ None Game ------ Seed AutogunBladeKatana Manual? 0 Play Time 00:42:55 Cumulative 15.6 hours Start 2025.09.01 @ 00:30:33 End 2025.09.01 @ 01:15:13 Sessions 1 Manual Loads 0 Difficulty Rogue Special Mode None Game No. 23 Rogue 23 Adventurer 0 Explorer 0 Win Type - Total 0 Types 0/0/0/0/0/0/0/0/0/0 Lore% 7 Gallery% 16 Achievement% 15 Wizard Run 0 Options --------- Layout 0 ASCII 0 Keyboard 0 Movement Arrows Keybinds 0 Fullscreen 2 Font 18/SmallcapsGlow Map View 38x25 Zoom Use 99% Tactical HUD 1 Map Filters NONE Filters NONE Steam 1 RUN: 8ba33c68-99a3-4d65-ac03-184fd97fde51